bitfinex-derivatives/quotes_BTCF0:USTF0_20250211
["timestamp","ask_amount","ask_price","bid_price","bid_amount"]
[1739282141639,0.3608,96802.0,96801.0,0.09170922]
[1739282141834,0.3608,96802.0,96801.0,0.00140922]
[1739282142739,0.3608,96802.0,96792.0,0.0001549]
[1739282142937,0.5673952,96793.0,96792.0,0.0001549]
[1739282143534,0.2066118,96786.0,96771.0,0.2066413]
[1739282143736,0.3608,96780.0,96771.0,0.2066413]
[1739282143938,0.3608,96780.0,96766.0,0.3608]
[1739282144136,0.2066386,96773.0,96763.0,0.2066579]
[1739282144536,0.2066386,96773.0,96764.0,0.2066563]
[1739282144743,0.5674243,96780.0,96762.0,0.00015499]
[1739282145047,0.5674243,96780.0,96767.0,0.2066486]
[1739282145243,0.3608,96780.0,96767.0,0.2066486]
[1739282146039,0.00015499,96781.0,96778.0,0.2066261]
[1739282146236,0.001,96780.0,96778.0,0.2066261]
[1739282146437,0.001,96780.0,96771.0,0.2076402]
[1739282146438,0.002,96780.0,96771.0,0.2076402]
[1739282146636,0.002,96780.0,96771.0,0.001]
[1739282146833,0.5674387,96773.0,96771.0,0.001]
[1739282147037,0.2066421,96771.0,96770.0,0.70044]
[1739282147247,0.2016421,96771.0,96770.0,0.69544]
[1739282147442,0.2016421,96771.0,96770.0,0.69684965]
[1739282147841,0.2006421,96771.0,96770.0,0.69584965]
[1739282148142,0.2006421,96771.0,96770.0,0.00140965]
[1739282148344,0.2006421,96771.0,96762.0,0.00015499]
[1739282148345,0.3608,96771.0,96762.0,0.00015499]
[1739282148645,0.3608,96771.0,96736.0,0.0919]
[1739282148646,0.2066768,96755.0,96742.0,0.10032]
[1739282148838,0.3608,96763.0,96742.0,0.10032]
[1739282148839,0.2066669,96760.0,96742.0,0.10032]
[1739282149040,0.2066669,96760.0,96751.0,0.2066843]
[1739282149433,0.2056669,96760.0,96751.0,0.2066843]
[1739282149736,0.00015499,96765.0,96762.0,0.2066613]
[1739282149936,0.00015499,96765.0,96759.0,0.2066675]
[1739282150135,0.3608,96764.0,96749.0,0.10008]
[1739282150440,0.001,96760.0,96759.0,0.2066678]
[1739282150840,0.002,96760.0,96759.0,0.2066678]
[1739282151043,0.001,96760.0,96759.0,0.2066678]
[1739282151446,0.00115499,96765.0,96764.0,0.2066571]
[1739282151652,0.00115499,96765.0,96764.0,0.5674571]
[1739282152249,0.00115499,96765.0,96764.0,0.3608]
[1739282152455,0.36195499,96765.0,96759.0,0.2066671]
[1739282152662,0.36195499,96765.0,96761.0,0.2066628]
[1739282152953,0.00115499,96765.0,96764.0,0.2066571]
[1739282153153,0.54169969,96791.0,96764.0,0.00140986]
[1739282153351,0.54169969,96791.0,96789.0,0.2066031]
[1739282153856,0.54169969,96791.0,96789.0,0.1066031]
[1739282154057,0.54169969,96791.0,96779.0,0.10016]
[1739282154260,0.54169969,96791.0,96785.0,0.00140986]
[1739282154752,0.2066101,96786.0,96785.0,0.00140986]
[1739282156160,0.18289969,96791.0,96785.0,0.00140986]
[1739282156355,0.18289969,96791.0,96790.0,0.2066016]
[1739282156557,0.002,96791.0,96781.0,0.0869]
[1739282156761,0.002,96786.0,96785.0,0.002]
[1739282157064,0.002,96786.0,96785.0,0.2086122]
[1739282157361,0.003,96786.0,96785.0,0.005]
[1739282157556,0.001,96786.0,96785.0,0.003]
[1739282157856,0.3608,96788.0,96781.0,0.0899]
[1739282158062,0.3608,96788.0,96781.0,0.2965208]
[1739282158259,0.5674044,96789.0,96781.0,0.2965208]
[1739282158561,0.001,96786.0,96785.0,0.004]
[1739282158763,0.001,96786.0,96780.0,0.00015499]
[1739282158960,0.001,96786.0,96757.0,0.12556991]
[1739282158961,0.0516562,96780.0,96757.0,0.12556991]
[1739282159159,0.3608,96781.0,96752.0,0.5674821]
[1739282159160,0.2066603,96763.0,96754.0,0.0994]
[1739282159367,0.2056603,96763.0,96755.0,0.2066744]
[1739282159758,0.3608,96767.0,96752.0,0.09924]
[1739282160061,0.206668,96759.0,96757.0,0.001]
[1739282160358,0.3608,96767.0,96757.0,0.001]
[1739282160566,0.3608,96758.0,96730.0,0.1845575]
[1739282160859,0.2067042,96742.0,96733.0,0.093]
[1739282161257,0.3608,96749.0,96734.0,0.2067199]
[1739282161459,0.2066999,96744.0,96734.0,0.2067199]
[1739282161856,0.36095499,96749.0,96733.0,0.093]
[1739282162058,0.00015499,96749.0,96746.0,0.2066938]
[1739282162654,0.00015499,96749.0,96747.0,0.2066924]
[1739282162857,0.00115499,96749.0,96739.0,0.1845575]
[1739282163064,0.00115499,96749.0,96739.0,0.21072404]
[1739282163263,0.001,96742.0,96740.0,0.2067084]
[1739282163468,0.001,96742.0,96733.0,0.093]
[1739282163469,0.2067095,96740.0,96733.0,0.093]
[1739282163768,0.2067095,96740.0,96735.0,0.02727112]
[1739282163964,0.00215499,96749.0,96737.0,0.3608]
[1739282164160,0.00215499,96749.0,96739.0,0.1845575]
[1739282164358,0.00215499,96749.0,96741.0,0.2067058]
[1739282164559,0.2066956,96746.0,96745.0,0.00133281]
[1739282164760,0.00215499,96749.0,96745.0,0.00133281]
[1739282165369,0.00115499,96749.0,96745.0,0.00133281]
[1739282165555,0.00115499,96749.0,96742.0,0.2067032]
[1739282165756,0.15082625,96767.0,96748.0,0.3608]
[1739282166062,0.15082625,96767.0,96754.0,0.2066769]
[1739282166268,0.15082625,96767.0,96756.0,0.3608]
[1739282166269,0.2066602,96763.0,96756.0,0.3608]
[1739282166455,0.3608,96765.0,96756.0,0.3608]
[1739282166659,0.15082625,96767.0,96758.0,0.2066685]
[1739282166859,0.15082625,96767.0,96762.0,0.20807049]
[1739282167055,0.15182625,96767.0,96762.0,0.00141029]
[1739282167260,0.15182625,96767.0,96765.0,0.2066541]
[1739282167460,0.15282625,96767.0,96765.0,0.2066541]
[1739282167662,0.15282625,96767.0,96766.0,1.5]
[1739282167867,0.3608,96797.0,96771.0,0.2066422]
[1739282168067,0.2065899,96796.0,96773.0,0.2066379]
[1739282168364,0.3608,96797.0,96773.0,0.2066379]
[1739282168763,0.04109969,96774.0,96773.0,0.2066379]
[1739282168968,0.04109969,96774.0,96773.0,0.20804819]
[1739282169563,0.04109969,96774.0,96773.0,0.00141029]
[1739282169763,0.001,96774.0,96773.0,0.00141029]
[1739282171071,0.2076358,96774.0,96773.0,0.00141029]
[1739282171468,0.2076358,96774.0,96773.0,0.00227636]
[1739282172262,0.2086358,96774.0,96773.0,0.00427636]
[1739282174371,0.002,96774.0,96773.0,0.00427636]
[1739282178876,0.3608,96818.0,96805.0,0.2065695]
[1739282179186,0.0907,96817.0,96801.0,0.2065778]
[1739282179479,0.2065695,96805.0,96803.0,0.00227636]
[1739282179870,0.3608,96807.0,96803.0,0.00227636]
[1739282180471,0.3608,96807.0,96805.0,0.002]
[1739282180671,0.5673672,96807.0,96805.0,0.002]
[1739282180870,0.56796721,96807.0,96805.0,0.003]
[1739282181074,0.56796721,96807.0,96805.0,0.001]
[1739282181475,0.36140001,96807.0,96805.0,0.00327636]
[1739282181874,0.36140001,96807.0,96805.0,0.00527636]
[1739282182073,0.56796691,96807.0,96805.0,0.00527636]
[1739282182779,0.36140001,96807.0,96805.0,0.00527636]
[1739282182975,0.36140001,96807.0,96805.0,0.57264596]
[1739282182976,0.00060001,96807.0,96805.0,0.57264596]
[1739282183185,0.00015499,96814.0,96805.0,0.23789406]
[1739282183484,0.00015499,96814.0,96805.0,0.00527636]
[1739282183778,0.00015499,96814.0,96805.0,0.21184596]
[1739282183979,0.00015499,96814.0,96805.0,0.57264596]
[1739282184978,0.00015499,96814.0,96805.0,0.67072596]
[1739282185181,0.2065669,96807.0,96805.0,0.00527636]
[1739282185482,0.2065909,96795.0,96794.0,0.00015499]
[1739282185681,0.5673909,96795.0,96794.0,0.00015499]
[1739282185878,0.3608,96795.0,96794.0,0.00015499]
[1739282186081,0.0025501,96806.0,96804.0,0.2065704]
[1739282186381,0.0025501,96806.0,96797.0,0.09808]
[1739282186575,0.3608,96800.0,96795.0,0.00052]
[1739282186770,0.3608,96800.0,96794.0,0.00015499]
[1739282186978,0.2065909,96795.0,96794.0,0.00015499]
[1739282187385,0.0015501,96806.0,96803.0,0.2065738]
[1739282187386,0.3608,96804.0,96803.0,0.2065738]
[1739282187686,0.3608,96804.0,96794.0,0.00015499]
[1739282188184,0.3608,96804.0,96794.0,0.00515499]
[1739282188387,0.3608,96804.0,96803.0,0.2065738]
[1739282188776,0.2563818,96804.0,96803.0,0.2065738]
[1739282188984,0.0845,96827.0,96803.0,0.02331276]
[1739282189176,0.00154953,96839.0,96819.0,0.3608]
[1739282189375,0.00154953,96839.0,96836.0,0.3608]
[1739282189576,0.00154953,96839.0,96829.0,0.39090768]
[1739282189777,0.2065099,96833.0,96827.0,0.3608]
[1739282189976,0.00154953,96839.0,96837.0,0.2065009]
[1739282190176,0.00154953,96839.0,96829.0,0.39090828]
[1739282191078,0.00154953,96839.0,96835.0,0.3608]
[1739282191271,0.00254953,96839.0,96835.0,0.3608]
[1739282191476,0.2065008,96838.0,96835.0,0.3608]
[1739282191675,0.001,96839.0,96835.0,0.3608]
[1739282191874,0.005,96839.0,96835.0,0.3608]
[1739282192079,0.2065014,96837.0,96835.0,0.3608]
[1739282192387,0.0888,96836.0,96835.0,0.3618]
[1739282193080,0.0888,96836.0,96835.0,0.001]
[1739282193388,0.0888,96836.0,96827.0,0.3608]
[1739282193590,0.2065192,96829.0,96827.0,0.3608]
[1739282194782,0.3608,96834.0,96820.0,0.0001549]
[1739282194998,0.3608,96834.0,96827.0,0.002]
[1739282195201,0.004,96829.0,96827.0,0.002]
[1739282195408,0.2065205,96828.0,96827.0,0.002]
[1739282195612,0.2065354,96821.0,96820.0,0.0001549]
[1739282195805,0.5673354,96821.0,96820.0,0.0001549]
[1739282197701,0.5673354,96821.0,96820.0,0.0031549]
[1739282198703,0.5673354,96821.0,96800.0,0.18439138]
[1739282198704,0.2065802,96800.0,96799.0,4.748e-05]
[1739282198903,0.5673802,96800.0,96799.0,4.748e-05]
[1739282199496,0.2066148,96784.0,96783.0,0.09652]
[1739282199999,0.3608,96784.0,96776.0,0.69504]
[1739282200204,0.2066293,96777.0,96776.0,0.69452]
[1739282200405,0.5674293,96777.0,96776.0,0.69452]
[1739282200799,0.2066293,96777.0,96776.0,0.69452]
[1739282201003,0.2066293,96777.0,96776.0,0.71780016]
[1739282201306,0.2065977,96792.0,96781.0,0.2066198]
[1739282201507,0.2065977,96792.0,96782.0,0.18439138]
[1739282201710,0.001,96784.0,96782.0,0.18439138]
[1739282201913,0.001,96784.0,96776.0,0.71832016]
[1739282202208,0.001,96784.0,96776.0,0.71780016]
[1739282202711,0.001,96784.0,96779.0,0.2066241]
[1739282203011,0.2065643,96808.0,96794.0,0.2065913]
[1739282203207,0.2065643,96808.0,96798.0,0.18439138]
[1739282203405,0.1851,96809.0,96799.0,1.5]
[1739282203809,0.0933,96809.0,96799.0,1.5]
[1739282204002,0.00060001,96811.0,96807.0,0.3608]
[1739282204201,0.00015499,96814.0,96807.0,0.3608]
[1739282204514,0.00015499,96814.0,96811.0,0.2065556]
[1739282205099,0.00015499,96814.0,96813.0,0.2065525]
[1739282205406,0.00215499,96814.0,96813.0,0.2065525]
[1739282206113,0.005,96814.0,96812.0,0.09596]
[1739282206415,0.3608,96832.0,96814.0,0.2065504]
[1739282206604,0.3608,96832.0,96825.0,0.3608]
[1739282207413,0.00015499,96838.0,96825.0,0.3608]
[1739282207603,0.69892434,96847.0,96825.0,0.3608]
[1739282207604,0.15092433,96847.0,96834.0,0.3608]
[1739282207806,0.09590188,96855.0,96854.0,0.2064651]
[1739282208004,0.09590188,96855.0,96854.0,0.5672651]
[1739282208412,0.09590188,96855.0,96854.0,0.3608]
[1739282209411,9.483e-05,96864.0,96854.0,0.3608]
[1739282209609,9.483e-05,96864.0,96863.0,0.3608]
[1739282210109,0.2064461,96863.0,96854.0,0.3608]
[1739282210309,0.2064666,96854.0,96851.0,0.09596]
[1739282210614,0.2064691,96853.0,96851.0,0.09596]
[1739282210807,0.2064691,96853.0,96845.0,0.0001549]
[1739282211007,0.2064819,96847.0,96845.0,0.0001549]
[1739282212005,0.2064819,96847.0,96845.0,0.0031549]
[1739282212805,0.3608,96849.0,96833.0,0.30809991]
[1739282213001,0.2065061,96835.0,96833.0,0.30809991]
[1739282213409,0.2065214,96828.0,96826.0,0.69476]
[1739282213612,0.2065214,96828.0,96826.0,0.69424]
[1739282214508,0.2065418,96818.0,96817.0,0.0001549]
[1739282215311,0.1925418,96818.0,96817.0,0.0001549]
[1739282215511,0.3608,96819.0,96803.0,0.3608]
[1739282215812,0.2065712,96805.0,96803.0,0.3608]
[1739282216013,0.1925712,96805.0,96803.0,0.3608]
[1739282218008,0.1935712,96805.0,96803.0,0.3608]
[1739282218418,0.2065909,96795.0,96794.0,0.0001549]
[1739282218713,0.9281909,96795.0,96794.0,0.0001549]
[1739282218924,0.9281909,96795.0,96776.0,0.093]
[1739282218925,0.2066275,96778.0,96776.0,0.093]
[1739282220015,0.36144,96795.0,96776.0,0.093]
[1739282220211,0.3608,96786.0,96776.0,0.093]
[1739282220811,0.3608,96786.0,96779.0,0.2066244]
[1739282221116,0.000155,96787.0,96776.0,0.093]
[1739282221311,0.000155,96787.0,96786.0,0.3608]
[1739282221509,0.001,96795.0,96794.0,0.206593]
[1739282221909,0.00155014,96815.0,96794.0,1.8608]
[1739282222107,0.00155014,96815.0,96814.0,0.2065504]
[1739282222310,0.09416,96849.0,96810.0,0.3608]
[1739282222311,0.3608,96838.0,96812.0,0.3608]
[1739282222620,0.2065101,96833.0,96823.0,0.3608]
[1739282222825,0.2065212,96828.0,96815.0,0.00015491]
[1739282223010,0.3608,96821.0,96815.0,0.00015491]
[1739282223212,0.2065461,96816.0,96815.0,0.00015491]
[1739282224114,0.1992461,96816.0,96815.0,0.00015491]
[1739282224923,0.2066146,96784.0,96780.0,0.09428]
[1739282225424,0.2066146,96784.0,96776.0,0.2066312]
[1739282225724,0.2066146,96784.0,96777.0,0.51422595]
[1739282226220,0.00015491,96793.0,96783.0,0.3608]
[1739282226413,0.2065973,96792.0,96783.0,0.54519138]
[1739282226615,0.206605,96789.0,96783.0,0.54519138]
[1739282226824,0.206605,96789.0,96783.0,0.3608]
[1739282227023,0.3608,96792.0,96783.0,0.3608]
[1739282227429,0.001,96784.0,96783.0,0.3608]
[1739282227620,0.002,96784.0,96783.0,0.3608]
[1739282227925,0.001,96792.0,96791.0,0.2065979]
[1739282228620,0.002,96792.0,96784.0,0.0887]
[1739282229211,0.002,96792.0,96791.0,0.3608]
[1739282230128,0.002,96792.0,96791.0,0.38388206]
[1739282230619,0.001,96792.0,96791.0,0.3608]
[1739282230922,0.001,96792.0,96785.0,1.50052]
[1739282230923,0.001,96792.0,96788.0,0.2066048]
[1739282231113,0.001,96792.0,96791.0,0.2065995]
[1739282231319,0.002,96792.0,96791.0,0.006]
[1739282232320,0.002,96792.0,96791.0,0.3668]
[1739282232726,0.002,96792.0,96791.0,0.006]
[1739282232929,0.001,96792.0,96791.0,0.3668]
[1739282233130,0.002,96792.0,96791.0,0.3668]
[1739282233315,0.002,96792.0,96791.0,0.4591]
[1739282233521,0.002,96792.0,96791.0,0.55262]
[1739282233725,0.001,96792.0,96791.0,0.55262]
[1739282233924,0.002,96792.0,96791.0,0.55262]
[1739282234325,1e-08,96793.0,96792.0,0.2065973]
[1739282234622,1e-08,96793.0,96792.0,0.2999973]
[1739282234831,1e-08,96793.0,96792.0,0.0934]
[1739282235928,1e-08,96793.0,96792.0,0.0984]
[1739282236237,1e-08,96793.0,96792.0,0.005]
[1739282236427,0.00100001,96793.0,96792.0,0.005]
[1739282236930,0.20759521,96793.0,96792.0,0.005]
[1739282238626,0.00100001,96793.0,96780.0,0.02299181]
[1739282238932,0.3608,96785.0,96775.0,0.45278358]
[1739282239227,0.00100001,96793.0,96791.0,0.2065981]
[1739282239429,0.3608,96807.0,96792.0,0.3608]
[1739282239735,0.2065952,96793.0,96791.0,0.09248]
[1739282239929,0.001,96793.0,96791.0,0.09248]
[1739282240520,0.3608,96792.0,96791.0,0.09248]
[1739282240717,0.00015491,96802.0,96791.0,0.09248]
[1739282241027,0.00160001,96807.0,96792.0,0.54519138]
[1739282241222,0.001,96793.0,96792.0,0.18439138]
[1739282241428,0.001,96793.0,96792.0,1.5]
[1739282241832,0.3618,96807.0,96792.0,1.5]
[1739282242034,0.00015491,96802.0,96800.0,0.2065798]
[1739282242228,0.00015491,96802.0,96793.0,0.2065936]
[1739282242430,0.00015491,96802.0,96792.0,0.0006]
[1739282242628,0.3608,96793.0,96791.0,0.003]
[1739282242827,0.00015491,96802.0,96791.0,0.003]
[1739282243023,0.00015491,96802.0,96797.0,0.2065854]
[1739282243222,0.00415491,96802.0,96800.0,0.20658]
[1739282243932,0.00015491,96802.0,96800.0,0.20658]
[1739282244121,0.002,96802.0,96801.0,0.0947]
[1739282244326,0.2065784,96801.0,96791.0,0.004]
[1739282244528,0.002,96802.0,96799.0,0.2065818]
[1739282244832,0.001,96802.0,96800.0,0.003]
[1739282245327,0.2990781,96801.0,96800.0,0.003]
[1739282245526,0.2990781,96801.0,96791.0,0.001]
[1739282245527,0.0925,96801.0,96791.0,0.001]
[1739282245729,0.3608,96792.0,96791.0,0.001]
[1739282246327,0.3608,96792.0,96780.0,0.39101368]
[1739282246635,0.3608,96792.0,96781.0,0.20662]
[1739282247135,0.5683986,96792.0,96781.0,0.20662]
[1739282247520,0.5683986,96792.0,96782.0,0.2066181]
[1739282248036,0.3628,96792.0,96760.0,0.55411127]
[1739282248234,0.2066215,96781.0,96769.0,0.3895459]
[1739282248539,0.2066215,96781.0,96770.0,0.206643]
[1739282248722,0.2066456,96770.0,96768.0,0.3608]
[1739282248923,0.2066312,96777.0,96768.0,0.3608]
[1739282249930,0.002,96781.0,96768.0,0.3608]
[1739282250135,0.2086214,96781.0,96771.0,0.2066417]
[1739282250338,0.002,96777.0,96768.0,0.3608]
[1739282250635,0.003,96777.0,96768.0,0.3608]
[1739282250839,0.003,96777.0,96768.0,0.567448]
[1739282251136,0.002,96777.0,96769.0,0.206646]
[1739282251338,0.002,96777.0,96768.0,0.3608]
[1739282251539,0.002,96777.0,96774.0,0.206634]
[1739282251740,0.002,96777.0,96776.0,0.2066315]
[1739282251937,0.003,96781.0,96777.0,0.2066287]
[1739282252545,0.001,96781.0,96777.0,0.2066287]
[1739282252839,0.000155,96782.0,96777.0,0.2066287]
[1739282253034,0.000155,96782.0,96776.0,0.3608]
[1739282253241,0.000155,96782.0,96768.0,0.3608]
[1739282253436,0.002,96781.0,96768.0,0.3810924]
[1739282253636,0.003,96781.0,96768.0,0.3810924]
[1739282253940,0.003,96781.0,96769.0,0.09204]
[1739282254135,0.002,96781.0,96775.0,0.2066332]
[1739282254742,0.003,96781.0,96775.0,0.2066332]
[1739282255037,0.001,96781.0,96775.0,0.2066332]
[1739282255344,0.001,96781.0,96778.0,0.206627]
[1739282255641,0.2066256,96779.0,96771.0,0.09184]
[1739282255842,0.2066256,96779.0,96771.0,0.298482]
[1739282256242,0.003,96781.0,96771.0,0.09184]
[1739282256442,0.2066329,96776.0,96771.0,0.09184]
[1739282256830,0.2066348,96775.0,96771.0,0.09184]
[1739282257045,0.001,96779.0,96771.0,0.09184]
[1739282257540,0.2066259,96779.0,96771.0,0.09184]
[1739282257842,0.2066285,96778.0,96771.0,0.09184]
[1739282258244,0.2066285,96778.0,96769.0,0.5674464]
[1739282258439,0.2066285,96778.0,96770.0,0.2066434]
[1739282258629,0.2066285,96778.0,96771.0,0.2066414]
[1739282259042,0.2086285,96778.0,96771.0,0.2066414]
[1739282259243,0.001,96775.0,96771.0,0.2066414]
[1739282259648,0.001,96775.0,96769.0,0.3608]
[1739282259831,0.2066306,96777.0,96769.0,0.3608]
[1739282260245,0.2066435,96771.0,96769.0,0.3608]
[1739282262037,0.2086435,96771.0,96769.0,0.3608]
[1739282262236,0.002,96771.0,96769.0,0.3608]
[1739282262442,0.002,96771.0,96769.0,0.5674453]
[1739282262838,0.003,96771.0,96769.0,0.5674453]
[1739282263538,0.003,96771.0,96770.0,0.09072]
[1739282264542,0.003,96771.0,96770.0,0.2973644]
[1739282264845,0.003,96771.0,96770.0,0.2066444]
[1739282265044,0.2066551,96765.0,96764.0,0.01667]
[1739282265940,0.3608,96766.0,96764.0,0.01667]
[1739282266256,0.0516516,96788.0,96764.0,0.01667]
[1739282266257,0.3608,96795.0,96781.0,0.2066209]
[1739282266451,0.3608,96809.0,96805.0,0.2065688]
[1739282266644,0.09854,96810.0,96809.0,0.2065611]
[1739282266841,0.00064,96810.0,96809.0,0.2065611]
[1739282267350,0.00154983,96829.0,96808.0,0.3608]
[1739282267546,0.15107506,96819.0,96818.0,0.3608]
[1739282267748,0.15107506,96819.0,96809.0,0.1007]
[1739282268050,0.15107506,96819.0,96809.0,0.22360937]
[1739282268253,0.15107506,96819.0,96806.0,0.0906]
[1739282268448,0.2065483,96816.0,96806.0,0.0906]
[1739282268651,0.2065483,96816.0,96806.0,0.21350937]
[1739282269054,0.00109494,96819.0,96809.0,0.2065592]
[1739282269242,0.00109494,96819.0,96812.0,0.3608]
[1739282269444,0.00409494,96819.0,96812.0,0.3608]
[1739282269646,0.00409494,96819.0,96817.0,0.2065426]
[1739282270946,0.00809494,96819.0,96817.0,0.2065426]
[1739282271743,9.494e-05,96819.0,96817.0,0.2065426]
[1739282271942,0.00809494,96819.0,96817.0,0.2075426]
[1739282272345,0.01009494,96819.0,96817.0,0.22849223]
[1739282272538,0.00209494,96819.0,96817.0,0.02094963]
[1739282272753,0.00209494,96819.0,96812.0,0.3373526]
[1739282272948,0.3608,96813.0,96812.0,0.2471926]
[1739282273746,0.4593,96813.0,96812.0,0.2471926]
[1739282274253,0.0985,96813.0,96812.0,0.2471926]
[1739282274552,0.4593,96813.0,96812.0,0.2471926]
[1739282275252,0.4673,96813.0,96812.0,0.002]
[1739282275645,0.4673,96813.0,96804.0,0.69436]
[1739282275847,0.4693,96813.0,96804.0,0.69436]
[1739282276453,0.2065548,96812.0,96804.0,0.69436]
[1739282276652,0.4693,96813.0,96804.0,0.69436]
[1739282276653,0.2065697,96805.0,96804.0,0.69436]
[1739282276853,0.5673697,96805.0,96804.0,0.69436]
[1739282278059,0.5763697,96805.0,96804.0,0.69536]
[1739282278762,0.5763697,96805.0,96804.0,0.001]
[1739282279844,0.3698,96805.0,96804.0,0.001]
[1739282280045,0.009,96805.0,96804.0,0.001]
[1739282280650,9.494e-05,96819.0,96818.0,0.206542]
[1739282280850,0.20805133,96837.0,96818.0,0.45]
[1739282281047,0.20805133,96837.0,96825.0,0.2065253]
[1739282281250,0.2065044,96836.0,96825.0,0.2065253]
[1739282282260,0.2065044,96836.0,96826.0,0.3608]
[1739282282461,0.2065044,96836.0,96826.0,0.54509732]
[1739282282757,0.2075044,96836.0,96826.0,0.54509732]
[1739282283350,0.2065065,96835.0,96826.0,0.54509732]
[1739282283950,0.001,96836.0,96834.0,0.5673065]
[1739282284146,0.001,96836.0,96834.0,0.3608]
[1739282284357,0.207504,96836.0,96827.0,0.1953]
[1739282284553,0.2065102,96833.0,96826.0,0.54809732]
[1739282284858,0.2065212,96828.0,96826.0,0.3638]
[1739282285062,0.2065212,96828.0,96826.0,0.003]
[1739282285265,0.2065249,96826.0,96825.0,0.002]
[1739282285650,0.2065335,96822.0,96817.0,0.78328]
[1739282285855,0.2065335,96822.0,96818.0,0.0204467]
[1739282286052,0.2065321,96822.0,96818.0,0.0204467]
[1739282286248,0.2065212,96828.0,96826.0,0.002]
[1739282286450,0.3608,96830.0,96826.0,0.002]
[1739282286660,0.2065082,96834.0,96826.0,0.002]
[1739282286856,0.2065005,96838.0,96826.0,0.002]
[1739282287159,0.2065005,96838.0,96828.0,0.18429732]
[1739282287358,0.36132001,96840.0,96832.0,0.2065109]
[1739282287561,0.2064867,96844.0,96832.0,0.2065109]
[1739282288359,0.206489,96843.0,96832.0,0.2065109]
[1739282289062,0.00060001,96849.0,96840.0,0.3608]
[1739282289366,0.2064607,96857.0,96844.0,0.206485]
[1739282289563,0.2064607,96857.0,96840.0,0.3608]
[1739282289750,0.0959,96861.0,96852.0,0.2064689]
[1739282289955,0.0959,96861.0,96848.0,0.3608]
[1739282290151,0.3608,96862.0,96848.0,0.3608]
[1739282290358,0.00154948,96864.0,96863.0,0.2064461]
[1739282291175,0.00154948,96864.0,96859.0,0.08896]
[1739282291858,0.00154948,96864.0,96863.0,0.001]
[1739282292550,0.00654948,96864.0,96863.0,0.001]
[1739282292750,0.00654948,96864.0,96841.0,0.08968]
[1739282293056,0.2064696,96852.0,96841.0,0.08968]
[1739282293455,0.2064696,96852.0,96841.0,0.1104201]
[1739282293962,0.3608,96852.0,96841.0,0.0207401]
[1739282294267,0.2064892,96843.0,96840.0,0.18429732]
[1739282294566,0.2064736,96851.0,96839.0,0.08991492]
[1739282294757,0.3608,96852.0,96841.0,0.2064909]
[1739282294954,0.006,96864.0,96846.0,0.3608]
[1739282295263,0.3608,96860.0,96850.0,0.18429732]
[1739282295456,0.3608,96860.0,96841.0,0.001]
[1739282295457,0.2064747,96850.0,96841.0,0.001]
[1739282295659,0.001,96852.0,96841.0,0.001]
[1739282295857,0.001,96852.0,96841.0,0.2074927]
[1739282296164,0.001,96852.0,96841.0,0.001]
[1739282296557,0.001,96852.0,96843.0,0.2064873]
[1739282296756,0.40828821,96853.0,96843.0,0.2064873]
[1739282296966,0.4077682,96853.0,96846.0,0.001]
[1739282297166,0.3608,96860.0,96846.0,0.001]
[1739282297464,0.5672529,96860.0,96850.0,0.39077012]
[1739282297666,0.002,96852.0,96850.0,0.39077012]
[1739282297967,0.002,96852.0,96850.0,0.2064728]
[1739282298358,0.5672529,96860.0,96850.0,0.2064728]
[1739282298565,0.3628,96860.0,96850.0,0.18429732]
[1739282298763,0.2064659,96854.0,96850.0,0.18429732]
[1739282299065,0.2064683,96853.0,96846.0,0.09052]
[1739282299268,0.2064549,96859.0,96846.0,0.09052]
[1739282299568,0.002,96852.0,96846.0,0.1114195]
[1739282299866,0.002,96852.0,96846.0,0.3179003]
[1739282300056,0.002,96854.0,96846.0,0.3169003]
[1739282300262,0.001,96852.0,96850.0,0.001]
[1739282300859,0.002,96854.0,96846.0,0.1104195]
[1739282301058,0.001,96852.0,96851.0,0.3608]
[1739282301864,0.28429732,96900.0,96851.0,0.6042716]
[1739282302068,0.2064053,96883.0,96872.0,0.2064258]
[1739282302368,0.3608,96892.0,96872.0,0.2064258]
[1739282302569,0.2064038,96883.0,96872.0,0.2064258]
[1739282302959,0.3608,96892.0,96871.0,0.3614]
[1739282303155,0.2064112,96880.0,96871.0,0.3608]
[1739282303469,0.2064194,96876.0,96871.0,0.3608]
[1739282303671,0.2064111,96880.0,96871.0,0.567227]
[1739282303858,0.3608,96892.0,96871.0,0.567227]
[1739282303859,0.2064143,96878.0,96871.0,0.567227]
[1739282304259,0.2064143,96878.0,96871.0,0.3608]
[1739282304467,0.2064163,96877.0,96871.0,0.3608]
[1739282304973,0.2064163,96877.0,96871.0,0.3618]
[1739282305159,0.3608,96892.0,96871.0,0.3618]
[1739282305360,0.3608,96892.0,96871.0,0.38228709]
[1739282305558,0.2063895,96890.0,96873.0,0.2064248]
[1739282305759,0.3608,96892.0,96873.0,0.2064248]
[1739282305961,0.3608,96892.0,96880.0,0.2064092]
[1739282306159,0.3608,96892.0,96881.0,0.2064065]
[1739282306355,0.3608,96892.0,96886.0,0.206395]
[1739282306560,0.00154857,96895.0,96889.0,0.2063899]
[1739282307261,0.00154857,96895.0,96888.0,0.3608]
[1739282307462,0.00154857,96895.0,96890.0,0.2063865]
[1739282307864,0.007,96892.0,96890.0,0.2063865]
[1739282309170,0.007,96892.0,96890.0,0.22713061]
[1739282309366,0.00154857,96895.0,96890.0,0.02074411]
[1739282309574,0.00854857,96895.0,96893.0,0.2063804]
[1739282309963,0.007,96895.0,96893.0,0.2063804]
[1739282310271,0.2063878,96891.0,96889.0,0.001]
[1739282310471,0.2063878,96891.0,96888.0,0.0884]
[1739282310667,0.2063878,96891.0,96890.0,0.001]
[1739282311868,0.007,96895.0,96890.0,0.001]
[1739282312072,0.12520307,96904.0,96891.0,0.0878]
[1739282312264,0.206362,96903.0,96891.0,0.0878]
[1739282312469,0.2063635,96902.0,96891.0,0.0878]
[1739282312670,0.007,96895.0,96890.0,0.037]
[1739282312870,0.2063864,96891.0,96890.0,0.037]
[1739282313269,0.2063864,96891.0,96889.0,0.001]
[1739282313470,0.1916,96890.0,96886.0,0.01874305]